bitfinex-derivatives/quotes_BTCF0:USTF0_20210111
["timestamp","ask_amount","ask_price","bid_price","bid_amount"]
[1610392931274,0.13632608,31737.0,31719.0,0.11269]
[1610392931475,0.20486608,31737.0,31719.0,0.04349]
[1610392931676,4.1623,31732.0,31719.0,0.04349]
[1610392932076,4.1623,31732.0,31684.0,4.8486]
[1610392932676,0.06854,31737.0,31658.0,0.3003]
[1610392932879,3.8862,31720.0,31659.0,4.8048]
[1610392933077,3.99136,31720.0,31659.0,4.8048]
[1610392933277,3.99136,31720.0,31685.0,0.13632608]
[1610392933477,3.99136,31720.0,31685.0,0.21141608]
[1610392933878,0.10516,31720.0,31685.0,0.07509]
[1610392934078,0.06854,31737.0,31685.0,0.07509]
[1610392935281,0.13632608,31730.0,31714.0,0.13632608]
[1610392935481,0.06854,31737.0,31714.0,0.13632608]
[1610392935678,4.6779,31759.0,31714.0,0.24269608]
[1610392935879,4.4052,31759.0,31714.0,0.24269608]
[1610392936081,4.4052,31759.0,31714.0,0.10637]
[1610392936680,1.5942,31758.0,31714.0,0.10637]
[1610392936880,1.70687,31758.0,31700.0,5.15895]
[1610392937480,0.20687,31758.0,31700.0,5.15895]
[1610392937682,0.11267,31758.0,31700.0,5.29527608]
[1610392938280,0.11267,31758.0,31700.0,5.15895]
[1610392938684,0.11267,31758.0,31700.0,5.56709209]
[1610392939883,0.13632608,31738.0,31700.0,5.56709209]
[1610392940294,0.11267,31758.0,31700.0,5.56709209]
[1610392941486,4.4052,31759.0,31700.0,5.56709209]
[1610392941891,0.13632608,31761.0,31750.0,0.13632608]
[1610392942093,0.13632608,31761.0,31750.0,0.21778608]
[1610392942694,0.10925,31775.0,31750.0,0.08146]
[1610392942897,4.3564,31783.0,31750.0,0.08146]
[1610392943099,0.07198,31791.0,31750.0,0.08146]
[1610392943312,1.0,31796.0,31758.0,0.02]
[1610392943504,1.0,31796.0,31758.0,0.11518]
[1610392943702,0.46915445,31805.0,31758.0,0.11518]
[1610392943902,4.29000249,31807.0,31758.0,0.11518]
[1610392944299,4.29000249,31807.0,31790.0,0.13632608]
[1610392944506,0.47100249,31807.0,31790.0,0.13632608]
[1610392944704,0.47353875,31812.0,31777.0,0.10767]
[1610392944895,0.01547598,31813.0,31777.0,0.10767]
[1610392945289,0.01545646,31812.0,31777.0,0.10767]
[1610392945489,4.93300646,31812.0,31777.0,0.10767]
[1610392945691,0.01548992,31810.0,31758.0,0.11518]
[1610392946090,0.46025009,31811.0,31758.0,0.11518]
[1610392946091,0.47649756,31807.0,31758.0,0.11518]
[1610392946290,0.47649756,31807.0,31785.0,0.13632608]
[1610392946692,0.47743167,31809.0,31770.0,0.11203]
[1610392946892,0.01556018,31808.0,31770.0,0.11203]
[1610392947292,0.47747606,31809.0,31770.0,0.11203]
[1610392947894,0.01559624,31811.0,31770.0,0.11203]
[1610392948093,4.91755,31812.0,31770.0,0.11203]
[1610392948692,4.91755,31812.0,31793.0,0.13632608]
[1610392948893,0.07395,31812.0,31789.0,0.07976]
[1610392949696,0.08967481,31812.0,31789.0,0.07976]
[1610392950401,0.48286032,31810.0,31789.0,0.07784283]
[1610392950599,0.48286032,31810.0,31772.0,3.6819]
[1610392950600,0.01570951,31807.0,31772.0,3.6819]
[1610392951005,0.01571914,31806.0,31772.0,3.6819]
[1610392951413,0.48281244,31807.0,31772.0,3.6819]
[1610392951805,0.01579444,31805.0,31772.0,3.6819]
[1610392952007,0.01583533,31804.0,31772.0,3.6819]
[1610392952402,0.11345763,31805.0,31772.0,3.6819]
[1610392952613,0.11345763,31805.0,31770.0,0.11203]
[1610392952812,0.13632608,31771.0,31760.0,0.13632608]
[1610392953010,0.13632608,31771.0,31758.0,0.11518]
[1610392953407,0.07248,31780.0,31758.0,0.11518]
[1610392953815,0.07248,31780.0,31758.0,0.02]
[1610392954215,4.31171888,31783.0,31758.0,0.02]
[1610392954404,0.48774989,31778.0,31758.0,0.0043]
[1610392954613,0.57977989,31778.0,31758.0,0.0043]
[1610392954810,0.57977989,31778.0,31706.0,0.2949]
[1610392954811,0.13632608,31759.0,31723.0,0.13632608]
[1610392955011,0.24754608,31759.0,31723.0,0.13632608]
[1610392955208,0.24754608,31759.0,31706.0,0.2949]
[1610392955405,0.24754608,31759.0,31703.0,5.166]
[1610392956005,0.34114608,31759.0,31703.0,5.166]
[1610392956205,0.34114608,31759.0,31689.0,0.2819]
[1610392956206,1.5,31758.0,31689.0,0.2819]
[1610392956404,4.2611,31746.0,31689.0,0.2819]
[1610392956603,4.36364,31746.0,31683.0,4.5284]
[1610392956805,4.36364,31746.0,31703.0,0.13632608]
[1610392957003,4.36364,31746.0,31700.0,0.0811]
[1610392957205,0.10254,31746.0,31700.0,0.0811]
[1610392957405,5.2255,31727.0,31671.0,4.3397]
[1610392957606,0.08779,31727.0,31667.0,0.2707]
[1610392957807,4.7562,31707.0,31651.0,0.2742]
[1610392958009,4.7562,31707.0,31644.0,4.501]
[1610392958209,1.5,31706.0,31643.0,2.23451073]
[1610392958406,4.6398,31690.0,31627.0,2.23184357]
[1610392958607,4.72116,31690.0,31627.0,2.23184357]
[1610392958810,4.72116,31690.0,31643.0,0.13632608]
[1610392959608,1.0,31681.0,31643.0,0.13632608]
[1610392959808,1.11194,31681.0,31643.0,0.13632608]
[1610392960808,1.0,31681.0,31640.0,0.09323]
[1610392961608,4.6398,31690.0,31640.0,0.09323]
[1610392961815,0.10965,31698.0,31640.0,0.09323]
[1610392962017,0.10965,31698.0,31646.0,4.2298]
[1610392962212,5e-05,31698.0,31697.0,0.13632608]
[1610392962413,0.00790534,31724.0,31697.0,0.24718608]
[1610392962609,3.9562,31735.0,31697.0,0.24718608]
[1610392963612,0.00796023,31751.0,31697.0,0.24718608]
[1610392963811,0.00796243,31755.0,31697.0,0.24718608]
[1610392964215,0.13632608,31745.0,31734.0,0.13632608]
[1610392964814,0.02380081,31766.0,31734.0,0.13632608]
[1610392965014,0.08325,31749.0,31734.0,0.13632608]
[1610392965213,1.0,31768.0,31734.0,0.13632608]
[1610392965415,1.0,31768.0,31734.0,0.13440608]
[1610392965615,0.29812496,31772.0,31734.0,0.13440608]
[1610392966014,0.2901,31772.0,31734.0,0.13440608]
[1610392966215,0.2901,31772.0,31762.0,0.13632608]
[1610392966815,0.2901,31772.0,31753.0,0.07007]
[1610392967415,0.07224,31776.0,31753.0,0.07007]
[1610392968018,0.0161366,31796.0,31753.0,0.07007]
[1610392968217,0.49387362,31798.0,31753.0,0.07007]
[1610392968718,0.01603485,31795.0,31753.0,0.07007]
[1610392968919,0.13632608,31766.0,31753.0,0.07007]
[1610392969320,0.0921,31786.0,31753.0,0.07007]
[1610392970921,0.0921,31786.0,31762.0,0.13632608]
[1610392971121,0.08782,31795.0,31762.0,0.23669608]
[1610392971520,0.49421377,31797.0,31762.0,0.23669608]
[1610392971723,0.49666063,31799.0,31762.0,0.23669608]
[1610392971920,0.49666063,31799.0,31762.0,0.10037]
[1610392972122,0.01619749,31798.0,31762.0,0.10037]
[1610392972321,0.13009749,31798.0,31762.0,0.10037]
[1610392972520,0.49753586,31795.0,31762.0,0.10037]
[1610392972922,0.01625464,31799.0,31762.0,0.10037]
[1610392973321,0.0162847,31801.0,31762.0,0.10037]
[1610392973521,0.0162847,31801.0,31772.0,0.13632608]
[1610392973721,0.01631042,31798.0,31772.0,0.10984]
[1610392974323,0.01635063,31796.0,31772.0,0.10984]
[1610392974722,0.01637559,31798.0,31772.0,0.10984]
[1610392975123,0.50323346,31794.0,31772.0,0.10984]
[1610392975322,0.60675346,31794.0,31762.0,0.10037]
[1610392975523,0.50093141,31786.0,31762.0,0.10037]
[1610392975722,0.58460141,31786.0,31753.0,0.07007]
[1610392975923,0.13632608,31754.0,31744.0,0.13632608]
[1610392976725,0.13632608,31754.0,31734.0,0.38451537]
[1610392977530,0.09527,31756.0,31734.0,0.38451537]
[1610392977728,0.09527,31756.0,31734.0,0.32861537]
[1610392978141,0.13632608,31735.0,31734.0,0.22031537]
[1610392978349,0.08762,31737.0,31734.0,0.05677558]
[1610392978543,0.08762,31737.0,31705.0,0.09411]
[1610392978736,4.6767,31712.0,31705.0,0.09411]
[1610392979132,4.6767,31712.0,31705.0,0.08161]
[1610392979335,4.6767,31712.0,31705.0,1e-05]
[1610392979530,1.0,31706.0,31705.0,1e-05]
[1610392979728,1.10526,31706.0,31639.0,0.48052141]
[1610392979927,1.10526,31706.0,31630.0,2.24249958]
[1610392980127,1.10526,31706.0,31660.0,0.13632608]
[1610392980526,1.10526,31706.0,31660.0,0.24524608]
[1610392980727,1.10526,31706.0,31660.0,0.10892]
[1610392980927,3.8583,31686.0,31660.0,0.10892]
[1610392981126,3.9293,31686.0,31660.0,0.10892]
[1610392981329,0.071,31686.0,31660.0,0.10892]
[1610392981926,4.2741,31680.0,31660.0,0.10892]
[1610392982129,0.13632608,31661.0,31660.0,0.10892]
[1610392983127,4.2741,31680.0,31660.0,0.10892]
[1610392984128,0.13632608,31661.0,31660.0,0.10892]
[1610392984729,4.52612608,31661.0,31660.0,0.10892]
[1610392985327,4.52612608,31661.0,31605.0,2.23739505]
[1610392985529,4.3898,31661.0,31604.0,4.4417]
[1610392985729,0.07411,31673.0,31602.0,2.23580321]
[1610392985931,4.3464,31636.0,31602.0,0.07352]
[1610392986128,0.13632608,31603.0,31602.0,0.20984608]
[1610392986328,0.0943,31662.0,31602.0,0.20984608]
[1610392986527,0.0943,31662.0,31602.0,0.07352]
[1610392986729,4.1075,31649.0,31602.0,0.07352]
[1610392987129,0.0956,31648.0,31602.0,0.07352]
[1610392987531,4.767,31629.0,31602.0,0.07352]
[1610392987731,0.08865,31640.0,31602.0,0.07352]
[1610392988231,7.1245,31719.0,31602.0,0.07352]
[1610392988232,0.00755976,31676.0,31639.0,0.13632608]
[1610392988431,0.00755976,31676.0,31641.0,3.6375]
[1610392988631,1.0,31684.0,31641.0,3.6375]
[1610392989532,0.02291591,31720.0,31641.0,3.6375]
[1610392989732,0.02283668,31718.0,31641.0,3.6375]
[1610392990132,3.7878,31719.0,31641.0,3.6375]
[1610392991134,0.01520868,31728.0,31639.0,0.07287]
[1610392991335,0.13632608,31707.0,31704.0,0.13632608]
[1610392991535,0.08808,31731.0,31704.0,0.13632608]
[1610392991737,0.08808,31731.0,31704.0,0.23816608]
[1610392991937,0.08808,31731.0,31704.0,0.10184]
[1610392992137,0.0951,31730.0,31704.0,0.10184]
[1610392992337,0.0951,31730.0,31704.0,0.01474]
[1610392992539,0.0951,31730.0,31645.0,7.5676]
[1610392992540,0.0951,31730.0,31639.0,0.07287]
[1610392992739,5.2138,31717.0,31665.0,4.7969]
[1610392992938,0.10149,31717.0,31645.0,4.8831]
[1610392993339,0.13632608,31700.0,31697.0,0.13632608]
[1610392993539,0.01517195,31722.0,31697.0,0.13632608]
[1610392993540,0.01512127,31721.0,31697.0,0.13632608]
[1610392993739,0.01512127,31721.0,31697.0,0.23362608]
[1610392993939,0.46567572,31733.0,31697.0,0.0973]
[1610392994341,0.01514769,31741.0,31697.0,0.0973]
[1610392994540,0.4500815,31742.0,31697.0,0.0973]
[1610392994541,0.0946,31735.0,31697.0,0.0973]
[1610392994941,0.0936,31742.0,31697.0,0.0973]
[1610392994942,0.01510982,31741.0,31697.0,0.0973]
[1610392995343,0.46400711,31743.0,31697.0,0.7206]
[1610392995545,0.46400711,31743.0,31730.0,0.13632608]
[1610392995744,0.46400711,31743.0,31697.0,0.0973]
[1610392995745,0.46578582,31750.0,31725.0,5.0634]
[1610392995944,0.46739178,31755.0,31725.0,5.0634]
[1610392996344,0.46894881,31764.0,31722.0,0.09253]
[1610392996944,0.75603257,31772.0,31722.0,0.09253]
[1610392996945,0.46851609,31763.0,31722.0,0.09253]
[1610392997146,0.54340609,31763.0,31722.0,0.09253]
[1610392997348,0.07489,31763.0,31722.0,0.66903]
[1610392998148,0.13632608,31745.0,31722.0,0.66903]
[1610392998547,0.07489,31763.0,31722.0,0.66903]
[1610392999549,4.63994446,31780.0,31722.0,0.66903]
[1610392999550,0.01537023,31779.0,31722.0,0.66903]
[1610392999747,0.01537023,31779.0,31722.0,0.61903]
[1610392999949,0.47094569,31778.0,31722.0,0.61903]
[1610393000148,0.57036569,31778.0,31753.0,0.13632608]
[1610393000350,0.09942,31778.0,31753.0,0.13632608]
[1610393000748,0.09942,31778.0,31750.0,0.10803]
[1610393002149,0.09942,31778.0,31765.0,0.13632608]
[1610393002749,0.46872496,31796.0,31765.0,0.13632608]
[1610393002954,0.469437,31798.0,31765.0,0.13440757]
[1610393003349,0.0152847,31798.0,31762.0,0.07038]
[1610393003749,0.66601942,31803.0,31762.0,0.07038]
[1610393003750,0.10812,31800.0,31762.0,0.07038]
[1610393004149,0.10812,31800.0,31780.0,0.13632608]
[1610393004355,0.12347592,31800.0,31780.0,0.13632608]
[1610393004648,0.01535592,31800.0,31780.0,0.13632608]
[1610393004849,5.13647694,31804.0,31780.0,0.101]
[1610393005050,5.5934346,31804.0,31780.0,0.101]
[1610393005552,1.0,31800.0,31780.0,0.101]
[1610393005751,0.01534049,31799.0,31762.0,0.07038]
[1610393006152,0.13632608,31763.0,31762.0,0.07038]
[1610393006352,0.00029991,31763.0,31762.0,0.07038]
[1610393006953,0.10793,31788.0,31762.0,0.07038]
[1610393007554,0.10793,31788.0,31750.0,0.10803]
[1610393007755,0.10793,31788.0,31744.0,4.8465]
[1610393008556,0.10793,31788.0,31686.0,2.22099664]
[1610393008754,0.10793,31788.0,29670.0,0.47271435]
[1610393008755,1.60793,31788.0,31714.0,4.1052]
[1610393008955,1.60793,31788.0,31730.0,0.32910659]
[1610393009156,0.01525414,31786.0,31730.0,0.41908659]
[1610393009355,1.51525414,31786.0,31730.0,0.25868659]
[1610393009555,0.01513031,31773.0,31730.0,0.04408659]
[1610393009754,1.5,31771.0,31702.0,3.9912]
[1610393009956,0.02,31714.0,31667.0,0.48017663]
[1610393010154,0.02,31714.0,31687.0,0.13632608]
[1610393010355,0.02,31714.0,31687.0,0.07204]
[1610393010759,0.0384,31714.0,31687.0,0.07204]
[1610393011757,4.86402087,31736.0,31687.0,0.07204]
[1610393012159,0.13632608,31704.0,31690.0,0.13632608]
[1610393012358,0.13632608,31704.0,31687.0,0.07204]
[1610393012759,0.22952608,31704.0,31687.0,0.07204]
[1610393012959,0.08293,31711.0,31687.0,0.07204]
[1610393013763,0.46654958,31737.0,31687.0,0.07204]
[1610393013962,0.07793,31738.0,31687.0,0.07204]
[1610393014362,0.13632608,31688.0,31676.0,0.10296]
[1610393015164,0.10864,31698.0,31676.0,0.10296]
[1610393015565,0.10864,31698.0,31676.0,0.07246]
[1610393016366,0.13632608,31677.0,31676.0,0.07246]
[1610393017565,0.13632608,31677.0,31638.0,3.8543]
[1610393017965,0.0979,31686.0,31609.0,2.23207786]
[1610393018167,0.0979,31686.0,31626.0,1.0]
[1610393018365,4.84288841,31696.0,31626.0,1.07355]
[1610393018967,4.84288841,31696.0,31676.0,0.33260793]
[1610393019165,0.3825,31711.0,31676.0,0.33260793]
[1610393019368,0.2868,31711.0,31676.0,0.33260793]
[1610393021570,0.13632608,31696.0,31690.0,0.13632608]
[1610393021771,0.2868,31711.0,31690.0,0.13632608]
[1610393022170,0.2868,31711.0,31710.0,1.0]
[1610393022571,0.09345,31724.0,31710.0,0.99807787]
[1610393022769,0.09345,31724.0,31705.0,0.09191]
[1610393023570,0.13632608,31706.0,31705.0,0.09191]
[1610393023972,0.13632608,31706.0,31690.0,0.07456]
[1610393024371,1.5,31709.0,31690.0,0.07456]
[1610393024570,0.11177,31706.0,31676.0,0.33260793]
[1610393025170,0.0947,31705.0,31676.0,0.33260793]
[1610393025674,0.13632608,31677.0,31676.0,0.33260793]
[1610393027073,1.08967,31682.0,31676.0,0.33260793]
[1610393027275,1.08967,31682.0,31676.0,0.14020684]
[1610393027475,1.08967,31682.0,31676.0,0.0439852]
[1610393027677,0.13632608,31677.0,31676.0,0.0439852]
[1610393028677,1.08967,31682.0,31676.0,0.0439852]
[1610393028880,5.3860222,31704.0,31676.0,0.0439852]
[1610393028881,0.44120919,31699.0,31676.0,0.0439852]
[1610393029278,0.4420365,31702.0,31676.0,0.0439852]
[1610393029479,0.4420365,31702.0,31671.0,0.0508052]
[1610393029679,5.2856,31681.0,31671.0,0.0350052]
[1610393029878,5.3745,31681.0,31671.0,0.0350052]
[1610393030079,5.3745,31681.0,31656.0,0.09622]
[1610393030881,0.13632608,31657.0,31656.0,0.09622]
[1610393031081,5.3745,31681.0,31656.0,0.09622]
[1610393031485,5.16098228,31681.0,31656.0,0.09622]
[1610393032283,5.16098228,31681.0,31633.0,4.8922]
[1610393032484,5.16098228,31681.0,31656.0,0.11027]
[1610393032784,0.13632608,31657.0,31656.0,0.11027]
[1610393033784,5.07208228,31681.0,31656.0,0.11027]
[1610393034785,0.13632608,31676.0,31656.0,0.11027]
[1610393036387,0.10237,31699.0,31656.0,0.11027]
[1610393036787,0.10237,31699.0,31698.0,1.0]
[1610393036987,0.44910209,31708.0,31698.0,1.0]
[1610393037186,0.44910209,31708.0,31707.0,0.13632608]
[1610393037388,0.45189823,31721.0,31707.0,0.22800608]
[1610393037788,0.4531644,31728.0,31707.0,0.13189829]
[1610393037988,0.4531644,31728.0,31707.0,0.09168]
[1610393038189,1.0,31733.0,31707.0,0.08975813]
[1610393038388,0.45274546,31732.0,31707.0,0.08975813]
[1610393038789,0.45276204,31735.0,31707.0,0.08975813]
[1610393039192,0.45276204,31735.0,31708.0,0.13632608]
[1610393039390,0.45276204,31735.0,31707.0,0.08975813]
[1610393039591,4.79474459,31737.0,31707.0,0.08975813]
[1610393039992,0.45123171,31736.0,31707.0,0.08975813]
[1610393040592,0.4520225,31734.0,31707.0,0.08975813]
[1610393041193,0.13632608,31708.0,31707.0,0.08975813]
[1610393041994,0.44977433,31733.0,31707.0,0.08975813]
[1610393042194,0.44942287,31736.0,31707.0,0.08975813]
[1610393042394,0.44942287,31736.0,31705.0,3.5865]
[1610393042595,0.44980293,31743.0,31705.0,3.5865]
[1610393042995,0.44984444,31745.0,31705.0,3.5865]
[1610393043398,0.45032854,31749.0,31705.0,3.5865]
[1610393043794,0.45032854,31749.0,31705.0,3.67951]
[1610393043997,0.45093118,31753.0,31705.0,3.67951]
[1610393044299,0.45098542,31754.0,31705.0,3.67951]
[1610393044698,0.94957516,31758.0,31705.0,3.67951]
[1610393044699,0.73999717,31758.0,31705.0,3.67951]
[1610393044900,0.0941,31757.0,31705.0,3.67951]
[1610393045100,0.676,31757.0,31705.0,3.67951]
[1610393045301,0.0941,31757.0,31705.0,0.09301]
[1610393045502,0.45074063,31751.0,31705.0,0.09301]
[1610393045700,0.13632608,31706.0,31705.0,0.09301]
[1610393045902,4.5116,31738.0,31705.0,0.09301]
[1610393046101,0.08512,31739.0,31705.0,0.09301]
[1610393047002,0.45127453,31748.0,31705.0,0.09301]
[1610393047602,0.45117982,31747.0,31717.0,0.13632608]
[1610393048404,0.45033384,31748.0,31717.0,0.13632608]
[1610393048603,0.45033384,31748.0,31717.0,0.24911608]
[1610393048803,0.45106005,31749.0,31747.0,1.0]
[1610393049104,0.45161419,31750.0,31747.0,1.0]
[1610393049604,0.13632608,31748.0,31747.0,0.71186874]
[1610393049805,0.13632608,31748.0,31731.0,0.08995]
[1610393050004,0.13632608,31748.0,31725.0,0.13632608]
[1610393050204,0.13632608,31748.0,31725.0,0.13440509]
[1610393050806,0.0936,31747.0,31725.0,0.13440509]
[1610393051206,0.0076794,31749.0,31725.0,0.13440509]
[1610393051406,0.0076794,31749.0,31725.0,0.21272509]
[1610393051607,0.00770641,31760.0,31748.0,0.13632608]
[1610393051806,0.00770641,31760.0,31748.0,0.24159608]
[1610393052010,0.00771693,31764.0,31748.0,0.24159608]
[1610393052407,0.007734,31771.0,31748.0,0.24159608]
[1610393052807,0.00774263,31773.0,31748.0,0.24159608]
[1610393053208,0.54669053,31776.0,31748.0,0.24159608]
[1610393053209,0.0935,31772.0,31748.0,0.24159608]
[1610393053408,0.00775104,31775.0,31748.0,0.24159608]
[1610393053610,0.00775104,31775.0,31769.0,0.13632608]
[1610393053811,0.00775104,31775.0,31762.0,0.07888]
[1610393054011,0.02309,31775.0,31762.0,0.04158]
[1610393054211,0.10207,31775.0,31762.0,0.04158]
[1610393054410,0.00770901,31771.0,31762.0,8e-05]
[1610393054812,0.02298212,31772.0,31748.0,0.10527]
[1610393055514,0.00771695,31775.0,31748.0,0.10527]
[1610393055914,0.00772257,31776.0,31748.0,0.10527]
[1610393056313,0.02301684,31777.0,31748.0,0.10527]
[1610393056714,0.00771515,31776.0,31738.0,4.4407]
[1610393057116,0.02300994,31777.0,31738.0,4.4407]
[1610393057313,0.02300994,31777.0,31738.0,4.54635]
[1610393057715,0.00771026,31776.0,31758.0,0.13632608]
[1610393058215,0.02299766,31777.0,31758.0,0.13632608]
[1610393058616,0.00769981,31779.0,31758.0,0.23965608]
[1610393058815,0.49832981,31780.0,31758.0,0.10333]
[1610393058816,0.03769943,31780.0,31758.0,0.10333]
[1610393059216,0.03,31780.0,31758.0,0.10333]
[1610393060816,0.03,31780.0,31758.0,0.10141101]
[1610393061817,0.13632608,31759.0,31758.0,0.10141101]
[1610393062016,0.07524,31779.0,31758.0,0.10141101]
[1610393062519,0.08299365,31779.0,31758.0,0.10141101]
[1610393062919,0.07524,31779.0,31758.0,0.10141101]
[1610393063917,0.07524,31779.0,31754.0,4.2238]
[1610393067120,0.03,31780.0,31754.0,4.2238]
[1610393067321,0.03,31780.0,31754.0,4.3107]
[1610393067724,0.03,31780.0,31771.0,0.13632608]
[1610393068121,0.03,31780.0,31754.0,4.3107]
[1610393069921,0.03,31780.0,31767.0,0.13632608]
[1610393070925,0.03,31780.0,31767.0,0.13440728]
[1610393072027,0.03,31780.0,31771.0,0.13632608]
[1610393074130,0.13632608,31772.0,31768.0,0.03]
[1610393074732,0.03,31780.0,31768.0,0.03]
[1610393074733,0.03,31780.0,31772.0,0.0199]
[1610393076632,0.03,31780.0,31772.0,0.0279]
[1610393078038,0.16632608,31780.0,31772.0,0.0279]
[1610393078436,0.03,31780.0,31772.0,0.0279]
[1610393080140,0.13632608,31773.0,31772.0,0.0279]
[1610393080741,0.03,31780.0,31772.0,0.0279]
[1610393081542,0.03,31780.0,31772.0,0.02598138]
[1610393084144,0.03,31780.0,31779.0,0.13632608]
[1610393084744,0.03,31780.0,31772.0,0.02598138]
[1610393084945,0.09592743,31775.0,31772.0,0.02598138]
[1610393085145,0.03,31780.0,31772.0,0.02598138]
[1610393086147,0.03,31780.0,31776.0,0.13632608]
[1610393088150,0.16632608,31780.0,31776.0,0.13632608]
[1610393091652,0.03,31780.0,31776.0,0.13440776]
[1610393092252,0.13632608,31778.0,31776.0,0.13440776]
[1610393093253,0.03,31780.0,31777.0,4.5052]
[1610393093456,0.27427887,31797.0,31777.0,4.5052]
[1610393093655,1.76359533,31812.0,31777.0,0.09963]
[1610393093856,0.67103272,31802.0,31793.0,4.591]
[1610393094056,0.67846305,31812.0,31793.0,4.591]
[1610393094255,1.07383659,31826.0,31793.0,4.591]
[1610393094256,0.13632608,31818.0,31809.0,0.13632608]
[1610393094657,0.87097232,31837.0,31812.0,4.996]
[1610393095057,0.87283362,31844.0,31812.0,4.996]
[1610393095459,0.87385644,31845.0,31812.0,4.996]
[1610393095858,0.87473259,31847.0,31812.0,4.996]
[1610393096257,0.87473259,31847.0,31828.0,0.13632608]
[1610393096659,0.87445122,31852.0,31828.0,0.04054319]
[1610393096858,0.87430732,31851.0,31828.0,0.04054319]
[1610393097057,0.96926732,31851.0,31828.0,0.04054319]
[1610393097258,0.09496,31851.0,31828.0,0.04054319]
[1610393098358,0.09496,31851.0,31826.0,4.3676]
[1610393098359,0.09496,31851.0,31841.0,0.13632608]
[1610393098760,0.09496,31851.0,31826.0,4.3676]
[1610393099165,5.0793,31842.0,31818.0,0.08034]
[1610393099361,5.16703,31842.0,31806.0,4.009]
[1610393099560,0.08773,31842.0,31803.0,0.09858]
[1610393099761,4.7935,31833.0,31803.0,0.09858]
[1610393099960,4.89803,31833.0,31790.0,3.605]
[1610393100361,0.13632608,31801.0,31790.0,3.605]
[1610393100559,0.13632608,31801.0,31781.0,4.6612]
[1610393100760,0.13632608,31801.0,31751.0,0.0955]
[1610393101162,0.13632608,31801.0,31765.0,4.5028]
[1610393102363,0.09453,31803.0,31789.0,0.13632608]
[1610393103363,0.09453,31803.0,31777.0,0.07371]
[1610393104364,0.09453,31803.0,31800.0,0.13632608]
[1610393104764,0.09453,31803.0,31800.0,0.13440945]
[1610393105164,0.68995238,31826.0,31800.0,0.13440945]
[1610393105568,4.6443,31827.0,31800.0,0.13440945]
[1610393106065,0.10453,31833.0,31800.0,0.13440945]
[1610393106266,0.8680544,31835.0,31822.0,0.13632608]
[1610393106464,0.95702483,31842.0,31822.0,0.13632608]
[1610393106866,0.08773,31842.0,31828.0,0.4045479]
[1610393107266,1.56039882,31848.0,31828.0,0.21300974]
[1610393107466,0.68953738,31848.0,31828.0,0.11723389]
[1610393107666,0.96632928,31851.0,31828.0,0.11723389]
[1610393107866,0.84043132,31851.0,31828.0,0.11723389]
[1610393108467,0.13632608,31829.0,31811.0,0.10111]
[1610393108668,0.13632608,31829.0,31816.0,4.6107]
[1610393110467,0.13632608,31829.0,31828.0,0.13632608]
[1610393111069,0.13632608,31829.0,31816.0,4.6107]
[1610393111269,0.07075108,31833.0,31816.0,4.6107]
[1610393112371,0.13632608,31824.0,31816.0,4.6107]
[1610393113178,0.07075108,31833.0,31816.0,4.6107]
[1610393113774,1.46059287,31851.0,31816.0,4.6107]
[1610393113972,0.68942518,31851.0,31816.0,4.6107]
[1610393114372,0.45960921,31850.0,31837.0,0.13632608]
[1610393114573,0.45960921,31850.0,31816.0,4.6107]
[1610393114773,0.09138,31850.0,31816.0,4.6107]
[1610393117471,0.09138,31850.0,31800.0,0.35416535]
[1610393117675,5.1876,31837.0,31800.0,0.35416535]
[1610393117873,5.29537,31837.0,31800.0,0.35416535]
[1610393118473,0.13632608,31801.0,31800.0,0.35416535]
[1610393119072,0.13632608,31801.0,31800.0,0.27646535]
[1610393119276,0.08322,31806.0,31800.0,0.25776535]
[1610393119475,0.08322,31806.0,31800.0,0.12796535]
[1610393119678,0.08322,31806.0,31778.0,4.3583]
[1610393120275,3.41315559,31809.0,31778.0,4.3045]
[1610393120474,0.13632608,31779.0,31778.0,4.2676]
[1610393120675,0.13632608,31779.0,31763.0,0.13632608]
[1610393120676,0.24388608,31779.0,31763.0,0.13632608]
[1610393121275,0.10756,31779.0,31760.0,5.22597]
[1610393122479,0.13632608,31769.0,31764.0,0.13632608]
[1610393123479,0.11032608,31769.0,31764.0,0.13632608]
[1610393123678,0.11032608,31769.0,31768.0,0.1238]
[1610393123880,0.09032608,31769.0,31768.0,0.03]
[1610393124581,0.09032608,31769.0,31768.0,0.16632608]
[1610393125481,0.08032608,31769.0,31768.0,0.16632608]
[1610393127684,3.88269672,31792.0,31768.0,0.16632608]
[1610393128686,0.13632608,31769.0,31768.0,0.16632608]
[1610393128888,0.13632608,31769.0,31768.0,0.03]
[1610393129687,0.21504608,31769.0,31768.0,0.03]
[1610393131088,0.21504608,31769.0,31768.0,0.0227]
[1610393131688,0.21504608,31769.0,31768.0,0.02078144]
[1610393132088,0.21504608,31769.0,31768.0,8.144e-05]
[1610393132889,2.42754608,31769.0,31768.0,8.144e-05]
[1610393133090,2.42754608,31769.0,31736.0,4.5122]
[1610393133290,1.57872,31769.0,31698.0,2.25068717]
[1610393133491,4.918,31748.0,31712.0,4.1285]
[1610393133692,1.5,31747.0,31698.0,2.25068717]
[1610393133891,4.4331,31732.0,31692.0,2.25087856]
[1610393134090,4.52994,31732.0,31692.0,2.25087856]
[1610393134290,4.52994,31732.0,31686.0,3.8444]
[1610393134690,0.13632608,31703.0,31686.0,3.8444]
[1610393136592,0.13632608,31715.0,31702.0,0.13632608]
[1610393137394,0.13632608,31715.0,31702.0,0.20945608]
[1610393137795,0.09684,31732.0,31702.0,0.20945608]
[1610393138597,0.13632608,31703.0,31702.0,0.20945608]
[1610393138996,0.09808,31723.0,31702.0,0.07313]
[1610393140297,4.6691,31713.0,31695.0,0.1007]
[1610393140497,4.75858,31713.0,31679.0,3.5727]
[1610393140698,4.75858,31713.0,31658.0,0.2731]
[1610393140699,0.13632608,31680.0,31673.0,0.13632608]
[1610393140897,0.13632608,31680.0,31654.0,2.23977517]
[1610393141097,0.13632608,31680.0,31622.0,8.9547]
[1610393141098,0.13632608,31680.0,31648.0,2.24031372]
[1610393141498,0.13632608,31680.0,31644.0,2.23804303]
[1610393141899,0.13632608,31680.0,31643.0,4.7193]